bitfinex/quotes_SOLUSD_20220114
["timestamp","ask_amount","ask_price","bid_price","bid_amount"]
[1642164724333,10.3708,144.68,144.61,26.04713088]
[1642164724537,10.8808,144.68,144.61,26.04713088]
[1642164724933,10.8808,144.68,144.61,26.29713088]
[1642164725135,10.8808,144.68,144.61,6.25]
[1642164725535,10.8808,144.68,144.61,6.0]
[1642164726035,2.765,144.69,144.61,6.25]
[1642164726237,2.765,144.75,144.62,2.765]
[1642164726434,8.45640105,144.76,144.63,69.8]
[1642164726636,5.69340105,144.76,144.64,11.063]
[1642164726835,5.69340105,144.76,144.65,24.22900333]
[1642164727037,8.45640105,144.76,144.66,2.763]
[1642164727234,8.45640105,144.76,144.68,10.3637]
[1642164727537,29.04109276,144.77,144.68,19.3767]
[1642164727733,2.763,144.76,144.68,16.6137]
[1642164727934,3.023,144.76,144.68,6.0]
[1642164728436,3.023,144.76,144.65,30.22900333]
[1642164728736,3.023,144.76,144.65,30.47900333]
[1642164729336,13.3889,144.76,144.65,40.84660333]
[1642164729540,3.023,144.76,144.65,40.84660333]
[1642164729836,0.26,144.76,144.66,2.763]
[1642164730036,29.04109276,144.77,144.66,9.013]
[1642164730636,29.29109276,144.77,144.66,9.013]
[1642164730836,39.65599276,144.77,144.66,2.763]
[1642164731236,2.763,144.76,144.66,2.763]
[1642164731438,11.573,144.76,144.66,2.763]
[1642164732440,10.3687,144.72,144.66,2.763]
[1642164732840,10.8787,144.72,144.66,2.763]
[1642164734042,10.8787,144.72,144.66,3.013]
[1642164734451,10.8787,144.72,144.66,2.763]
[1642164734654,4.36322527,144.71,144.66,2.763]
[1642164734850,2.763,144.7,144.66,2.763]
[1642164735049,11.063,144.7,144.66,2.763]
[1642164735249,11.573,144.7,144.66,2.763]
[1642164735448,11.573,144.7,144.56,24.4425]
[1642164735653,11.573,144.7,144.57,31.21578433]
[1642164735851,10.3719,144.68,144.58,10.3726]
[1642164736050,10.8819,144.68,144.58,16.3726]
[1642164736251,11.573,144.7,144.58,16.3726]
[1642164736252,2.763,144.7,144.58,16.3726]
[1642164736453,11.065,144.74,144.59,1.46106854]
[1642164736652,11.065,144.74,144.59,34.63786854]
[1642164736852,11.315,144.74,144.59,47.88386854]
[1642164737556,11.575,144.74,144.59,47.88386854]
[1642164737952,11.315,144.74,144.59,47.88386854]
[1642164738158,10.368,144.73,144.63,10.3691]
[1642164738355,0.25,144.74,144.63,18.6061]
[1642164738556,0.25,144.74,144.63,25.1161]
[1642164739056,0.25,144.74,144.64,12.22989762]
[1642164739257,10.617,144.74,144.65,10.3675]
[1642164739457,10.877,144.74,144.65,16.6175]
[1642164739757,10.627,144.74,144.65,16.6175]
[1642164739960,10.627,144.74,144.65,10.6175]
[1642164740257,0.26,144.74,144.65,16.0195]
[1642164740458,2.763,144.75,144.65,23.48056854]
[1642164740674,2.763,144.75,144.66,0.07]
[1642164740874,2.763,144.75,144.7,10.3624]
[1642164741077,2.763,144.75,144.7,24.3984]
[1642164741275,2.763,144.75,144.71,25.76680124]
[1642164741475,2.763,144.75,144.71,32.01680124]
[1642164742279,2.763,144.75,144.71,6.25]
[1642164742480,2.763,144.79,144.65,47.7256]
[1642164742677,2.763,144.79,144.69,6.25]
[1642164742878,3.013,144.79,144.65,47.7256]
[1642164743078,3.013,144.79,144.62,1.46106854]
[1642164743079,29.3951,144.79,144.62,1.46106854]
[1642164743278,48.91587588,144.78,144.63,35.1287649]
[1642164743477,11.063,144.77,144.63,35.1287649]
[1642164743677,12.76377588,144.77,144.63,35.1287649]
[1642164743879,13.27377588,144.77,144.63,35.1287649]
[1642164744178,1.70077588,144.76,144.63,35.1287649]
[1642164744380,10.368,144.72,144.64,10.368]
[1642164744579,10.368,144.72,144.64,16.368]
[1642164744982,10.618,144.72,144.64,16.618]
[1642164745880,10.618,144.72,144.64,6.25]
[1642164746080,10.618,144.72,144.64,0.25]
[1642164746280,10.878,144.72,144.64,6.25]
[1642164746982,10.878,144.72,144.64,16.6184]
[1642164747984,10.878,144.72,144.64,19.3824]
[1642164748384,10.878,144.72,144.64,19.1324]
[1642164748785,10.878,144.72,144.64,8.764]
[1642164748986,10.878,144.72,144.64,9.014]
[1642164751890,2.763,144.71,144.64,2.764]
[1642164752091,10.3708,144.68,144.64,2.764]
[1642164752490,10.8808,144.68,144.64,2.764]
[1642164752895,23.18138109,144.67,144.64,2.764]
[1642164753090,33.81258109,144.67,144.64,2.764]
[1642164754296,6.72006557,144.72,144.64,0.25]
[1642164754496,3.95506557,144.72,144.65,2.763]
[1642164754895,3.95506557,144.72,144.65,9.013]
[1642164755295,22.96412522,144.71,144.65,8.763]
[1642164755499,22.96412522,144.71,144.65,2.763]
[1642164756296,23.21412522,144.71,144.65,2.763]
[1642164756499,33.58262522,144.71,144.65,2.763]
[1642164756699,33.58262522,144.71,144.61,2.763]
[1642164757298,33.58262522,144.71,144.61,9.013]
[1642164758300,33.58262522,144.71,144.61,19.3836]
[1642164758500,33.84262522,144.71,144.61,19.3836]
[1642164759700,36.60762522,144.71,144.61,19.3836]
[1642164761503,36.60762522,144.71,144.61,13.3836]
[1642164763412,36.34762522,144.71,144.61,13.3836]
[1642164763605,36.34762522,144.71,144.61,19.3836]
[1642164763806,36.34762522,144.71,144.61,13.3836]
[1642164764606,36.60762522,144.71,144.61,13.3836]
[1642164764808,36.34762522,144.71,144.61,13.3836]
[1642164765606,36.34762522,144.71,144.61,19.3836]
[1642164765811,36.34762522,144.71,144.61,13.3836]
[1642164766312,36.60762522,144.71,144.61,13.3836]
[1642164766937,36.60762522,144.71,144.61,19.3836]
[1642164767536,36.60762522,144.71,144.61,13.3836]
[1642164767736,36.60762522,144.71,144.61,3.013]
[1642164768940,36.60762522,144.71,144.61,13.3838]
[1642164769337,36.34762522,144.71,144.61,19.3838]
[1642164769639,36.34762522,144.71,144.61,13.3838]
[1642164770439,36.34762522,144.71,144.61,19.3838]
[1642164770639,36.34762522,144.71,144.61,3.013]
[1642164770840,36.60762522,144.71,144.61,3.013]
[1642164771242,36.60762522,144.71,144.61,9.013]
[1642164772341,36.60762522,144.71,144.62,10.3701]
[1642164772541,36.60762522,144.71,144.62,16.6201]
[1642164772841,36.60762522,144.71,144.62,6.25]
[1642164774143,36.60762522,144.71,144.62,0.25]
[1642164774344,33.84262522,144.71,144.63,2.765]
[1642164774544,33.84262522,144.71,144.64,10.3688]
[1642164774744,10.3685,144.71,144.64,10.6188]
[1642164774943,10.3674,144.72,144.64,16.6188]
[1642164775144,10.3674,144.72,144.65,2.763]
[1642164775344,10.3674,144.72,144.65,2.263]
[1642164775544,10.3674,144.72,144.65,2.513]
[1642164775744,32.91612388,144.72,144.65,21.98107122]
[1642164775944,41.27536557,144.76,144.66,10.3674]
[1642164776347,41.52536557,144.76,144.66,16.6174]
[1642164776544,10.3667,144.73,144.66,16.6174]
[1642164776745,10.3667,144.73,144.66,10.6174]
[1642164776944,39.65142771,144.73,144.66,10.6174]
[1642164777346,29.28472771,144.73,144.66,10.6174]
[1642164777946,29.28472771,144.73,144.66,16.6174]
[1642164778351,29.54472771,144.73,144.66,16.6174]
[1642164778948,29.54472771,144.73,144.68,10.366]
[1642164779146,29.54472771,144.73,144.68,9.866]
[1642164779348,26.8288,144.77,144.68,16.116]
[1642164779544,26.8288,144.77,144.68,24.156]
[1642164779545,0.25,144.77,144.68,24.156]
[1642164779744,0.25,144.77,144.68,32.716]
[1642164779945,6.71806557,144.78,144.69,71.26947293]
[1642164780145,3.95506557,144.78,144.74,10.3607]
[1642164780345,3.95506557,144.78,144.74,18.4527]
[1642164780546,3.95506557,144.78,144.74,24.7027]
[1642164780748,3.95506557,144.78,144.74,18.7027]
[1642164781346,1.97728395,144.78,144.74,18.7027]
[1642164781745,1.97728395,144.78,144.74,24.7027]
[1642164782348,1.97728395,144.79,144.74,24.7027]
[1642164784548,1.97728395,144.8,144.74,24.7027]
[1642164785047,1.97728395,144.8,144.74,24.9627]
[1642164785247,1.97728395,144.8,144.77,10.3574]
[1642164785447,1.97728395,144.8,144.78,25.53247115]
[1642164785648,3.95506557,144.83,144.78,25.53247115]
[1642164785848,4.20506557,144.83,144.78,31.53247115]
[1642164786050,3.95506557,144.83,144.78,31.53247115]
[1642164786249,3.95506557,144.83,144.78,32.04247115]
[1642164786652,3.95506557,144.85,144.78,32.04247115]
[1642164787148,3.95506557,144.85,144.79,10.3569]
[1642164787551,3.95506557,144.85,144.79,16.6069]
[1642164787749,12.41046662,144.88,144.79,16.6069]
[1642164787948,6.96706557,144.88,144.79,16.8669]
[1642164788148,6.96706557,144.88,144.79,86.6669]
[1642164788351,6.96706557,144.88,144.79,16.8669]
[1642164788551,6.96706557,144.88,144.79,16.6069]
[1642164788748,6.96706557,144.88,144.79,16.8669]
[1642164789949,17.58336557,144.88,144.79,16.6069]
[1642164791151,7.22706557,144.88,144.79,16.6069]
[1642164792355,7.22706557,144.88,144.79,16.6269]
[1642164792952,6.96706557,144.88,144.79,16.8869]
[1642164793352,4.20506557,144.88,144.79,86.6869]
[1642164793556,3.95506557,144.89,144.79,88.15637293]
[1642164793856,3.95506557,144.89,144.84,10.3529]
[1642164794055,3.95506557,144.89,144.84,16.3529]
[1642164794253,3.95506557,144.89,144.84,40.33051073]
[1642164794656,7.90742287,144.89,144.84,40.33051073]
[1642164794953,7.90742287,144.89,144.84,40.58051073]
[1642164795154,7.90742287,144.89,144.84,43.34151073]
[1642164795556,3.95506557,144.89,144.84,43.34151073]
[1642164795757,3.95506557,144.92,144.84,113.14151073]
[1642164795956,3.95506557,144.92,144.84,113.40151073]
[1642164796157,3.45506557,144.92,144.84,113.40151073]
[1642164796757,2.761,144.94,144.84,113.40151073]
[1642164796956,36.50484628,144.95,144.84,113.40151073]
[1642164797162,36.50484628,144.95,144.84,43.34151073]
[1642164797559,36.75484628,144.95,144.84,43.34151073]
[1642164797758,3.95126518,144.94,144.84,43.34151073]
[1642164797963,7.22026518,144.94,144.84,43.34151073]
[1642164798559,7.22026518,144.94,144.84,43.60151073]
[1642164798760,3.95126518,144.93,144.84,37.60151073]
[1642164798958,4.46126518,144.93,144.84,37.60151073]
[1642164799159,4.46126518,144.93,144.84,37.34151073]
[1642164799762,0.26,144.93,144.84,13.1139]
[1642164799960,2.759,144.92,144.82,8.3]
[1642164800361,4.71977588,144.92,144.82,8.3]
[1642164800561,10.3566,144.88,144.82,8.3]
[1642164800761,10.3566,144.88,144.82,31.45639104]
[1642164800961,10.3566,144.88,144.82,37.45639104]
[1642164801363,2.6128728,144.89,144.82,47.81189104]
[1642164801563,13.2283728,144.89,144.82,47.81189104]
[1642164801763,13.4783728,144.89,144.82,37.45639104]
[1642164801966,13.4783728,144.89,144.82,107.50639104]
[1642164802167,10.6055,144.89,144.82,37.70639104]
[1642164802469,10.6055,144.89,144.82,37.96639104]
[1642164803767,10.6055,144.89,144.82,37.70639104]
[1642164803967,10.6055,144.89,144.82,8.3]
[1642164804168,10.6055,144.89,144.8,27.1437]
[1642164804370,13.3665,144.89,144.82,0.02]
[1642164804771,13.6265,144.89,144.82,0.02]
[1642164806971,1.70077588,144.88,144.82,0.02]
[1642164807172,10.3614,144.85,144.82,0.02]
[1642164807371,6.50979902,144.84,144.82,0.02]
[1642164807573,7.01979902,144.84,144.82,0.02]
[1642164807773,4.25879902,144.84,144.82,0.02]
[1642164807971,3.99879902,144.84,144.82,0.02]
[1642164808200,10.3604,144.83,144.82,0.02]
[1642164808702,10.6104,144.83,144.82,0.02]
[1642164809099,10.3604,144.83,144.82,0.02]
[1642164809503,37.29,144.88,144.82,0.02]
[1642164809700,34.529,144.88,144.82,0.02]
[1642164809900,34.779,144.88,144.82,0.02]
[1642164810300,0.25,144.88,144.82,0.02]
[1642164810502,30.97303936,144.88,144.82,0.02]
[1642164810900,10.3571,144.87,144.82,0.02]
[1642164811300,2.761,144.91,144.82,0.02]
[1642164812402,2.761,144.91,144.83,10.3549]
[1642164812604,47.74249366,144.93,144.83,13.3659]
[1642164812803,47.74249366,144.93,144.83,19.3659]
[1642164813006,47.74249366,144.93,144.83,19.1159]
[1642164813206,47.99249366,144.93,144.83,19.1159]
[1642164813404,3.95179958,144.92,144.83,19.1159]
[1642164813604,14.30539958,144.92,144.83,8.761]
[1642164813805,14.81539958,144.92,144.83,8.761]
[1642164814508,2.761,144.91,144.82,23.118]
[1642164814907,10.3567,144.88,144.82,23.118]
[1642164815112,10.3567,144.88,144.82,0.02]
[1642164815310,7.22279958,144.91,144.82,0.02]
[1642164815719,3.271,144.91,144.82,0.02]
[1642164816517,10.31702437,144.87,144.82,0.02]
[1642164816919,10.57702437,144.87,144.82,0.02]
[1642164817319,10.31702437,144.87,144.82,0.02]
[1642164817521,10.57702437,144.87,144.82,0.02]
[1642164818126,20.93422437,144.87,144.82,0.02]
[1642164818822,2.761,144.86,144.82,0.02]
[1642164819023,3.271,144.86,144.82,0.02]
[1642164819222,10.3586,144.85,144.82,0.02]
[1642164819624,10.6186,144.85,144.82,0.02]
[1642164819825,10.8686,144.85,144.82,0.02]
[1642164820324,2.761,144.84,144.82,0.02]
[1642164820526,0.51,144.84,144.82,0.02]
[1642164820727,57.3622,144.83,144.82,0.02]
[1642164820924,57.6222,144.83,144.82,0.02]
[1642164821126,57.8722,144.83,144.82,0.02]
[1642164821324,10.8722,144.83,144.82,0.02]
[1642164821526,10.6122,144.83,144.82,0.02]
[1642164822126,44.6122,144.83,144.82,0.02]
[1642164823326,44.8722,144.83,144.82,0.02]
[1642164823924,44.6122,144.83,144.82,0.02]
[1642164824728,10.6122,144.83,144.82,0.02]
[1642164824927,0.25,144.83,144.82,0.02]
[1642164825129,29.25,144.83,144.82,0.02]
[1642164825531,29.51,144.83,144.82,0.02]
[1642164825931,39.8702,144.83,144.82,0.02]
[1642164835275,61.3839,144.86,144.82,0.02]
[1642164835476,10.3592,144.84,144.82,0.02]
[1642164835878,10.31702437,144.87,144.82,3.05219997]
[1642164836076,10.31702437,144.87,144.82,0.02]
[1642164836478,10.31702437,144.87,144.83,2.761]
[1642164836677,5.69340105,144.9,144.83,6.914]
[1642164836879,5.69340105,144.93,144.84,2.761]
[1642164837177,5.69340105,144.93,144.87,10.3517]
[1642164837379,5.69340105,144.93,144.87,8.652]
[1642164837582,16.04680105,144.93,144.84,2.761]
[1642164837777,2.759,144.92,144.84,2.761]
[1642164837977,3.269,144.92,144.84,2.761]
[1642164838276,30.53764457,144.91,144.84,2.761]
[1642164838481,30.78764457,144.91,144.84,2.761]
[1642164839378,10.356,144.89,144.82,10.3755]
[1642164839578,10.606,144.89,144.82,10.3755]
[1642164839778,10.866,144.89,144.82,10.3755]
[1642164840177,10.866,144.89,144.82,0.02]
[1642164840578,10.3577,144.87,144.82,0.02]
[1642164840982,10.6177,144.87,144.82,0.02]
[1642164841385,0.26,144.87,144.82,0.02]
[1642164841580,3.021,144.88,144.82,0.02]
[1642164843280,3.271,144.88,144.82,0.02]
[1642164843486,13.6274,144.88,144.82,0.02]
[1642164844784,83.4274,144.88,144.82,0.02]
[1642164845784,91.7274,144.88,144.82,0.02]
[1642164845987,93.42817588,144.88,144.82,0.02]
[1642164846186,10.3588,144.85,144.82,0.02]
[1642164846584,2.86667346,144.84,144.82,0.02]
[1642164846987,3.37667346,144.84,144.82,0.02]
[1642164847588,3.11667346,144.84,144.83,6.06439993]
[1642164848591,3.11667346,144.84,144.82,0.02]
[1642164849890,3.37667346,144.84,144.82,0.02]
[1642164850090,13.73557346,144.84,144.82,0.02]
[1642164850490,13.73557346,144.84,144.75,2.761]
[1642164850692,2.762,144.83,144.71,27.2074]
[1642164850994,3.272,144.83,144.71,33.2074]
[1642164851593,36.1419,144.83,144.82,0.02]
[1642164851793,36.1419,144.83,144.71,43.8202]
[1642164852194,36.1419,144.83,144.71,13.1248]
[1642164852394,36.1419,144.83,144.71,2.762]
[1642164852595,10.3651,144.77,144.71,2.762]
[1642164852997,10.8751,144.77,144.71,2.762]
[1642164853414,23.48814504,144.76,144.71,2.762]
[1642164853614,93.28814504,144.76,144.71,2.762]
[1642164853816,93.28814504,144.76,144.65,22.7187567]
[1642164853817,113.89124504,144.76,144.65,10.3671]
[1642164854115,113.89124504,144.76,144.62,46.46422044]
[1642164854116,113.89124504,144.76,144.62,8.3]
[1642164854515,122.19124504,144.76,144.61,123.15888891]
[1642164855313,23.871,144.75,144.63,10.3685]
[1642164855514,10.3692,144.7,144.63,16.3685]
[1642164855714,10.3692,144.7,144.62,2.764]
[1642164855715,20.28537299,144.7,144.62,2.764]
[1642164855915,20.79537299,144.7,144.62,8.764]
[1642164856116,20.79537299,144.7,144.62,2.764]
[1642164856913,20.79537299,144.7,144.61,44.12888891]
[1642164856914,23.56037299,144.7,144.61,46.89388891]
[1642164857114,23.56037299,144.7,144.61,47.14388891]
[1642164859318,13.6442,144.7,144.61,47.14388891]
[1642164859721,13.3842,144.7,144.61,47.14388891]
[1642164860023,0.25,144.7,144.61,47.14388891]
[1642164860220,0.25,144.72,144.61,123.94629027]
[1642164860419,0.25,144.72,144.67,10.3641]
[1642164860620,29.58101206,144.75,144.67,26.05089304]
[1642164861420,2.763,144.78,144.67,26.05089304]
[1642164861623,2.763,144.78,144.67,32.05089304]
[1642164862421,10.3646,144.76,144.67,32.05089304]
[1642164862818,13.6376,144.76,144.67,32.05089304]
[1642164864920,13.6376,144.76,144.67,15.68679304]
[1642164865521,13.6376,144.76,144.64,2.763]
[1642164865720,13.6376,144.76,144.66,6.0]
[1642164865921,13.6376,144.76,144.64,9.013]
[1642164866124,13.6376,144.76,144.64,3.013]
[1642164866320,13.6376,144.76,144.64,19.3808]
[1642164866523,13.6376,144.76,144.65,23.07500647]
[1642164867121,13.6376,144.76,144.65,23.32500647]
[1642164868423,13.6376,144.76,144.65,23.07500647]
[1642164868726,83.4376,144.76,144.65,23.07500647]
[1642164868925,83.4376,144.76,144.64,2.763]
[1642164868926,91.7376,144.76,144.64,2.763]
[1642164869122,91.7376,144.76,144.63,27.2624]
[1642164869324,115.4958,144.76,144.63,27.2624]
[1642164869926,115.4958,144.76,144.63,3.013]
[1642164870328,117.19657588,144.76,144.63,0.25]
[1642164870526,117.19657588,144.76,144.62,3.013]
[1642164874332,117.19657588,144.76,144.62,13.383]
[1642164875130,117.19657588,144.76,144.62,3.013]
[1642164875328,117.19657588,144.76,144.61,26.4176]
[1642164875528,117.19657588,144.76,144.61,26.6676]
[1642164876731,117.19657588,144.76,144.61,3.013]
[1642164878633,69.8,144.74,144.61,3.013]
[1642164878832,10.3722,144.68,144.61,2.763]
[1642164879033,10.6222,144.68,144.61,2.763]
[1642164879231,10.8822,144.68,144.61,2.763]
[1642164879834,5.27918369,144.67,144.61,2.763]
[1642164880035,10.3727,144.65,144.6,27.141]
[1642164880232,10.3727,144.65,144.6,2.765]
[1642164880433,10.6327,144.65,144.6,2.765]
[1642164880632,10.6327,144.65,144.6,3.015]
[1642164882136,10.6327,144.65,144.6,2.765]
[1642164882338,10.8827,144.65,144.59,37.5764]
[1642164882536,10.8827,144.65,144.59,27.2045]
[1642164882937,10.8827,144.65,144.58,2.765]
[1642164883337,10.8827,144.65,144.58,19.138]
[1642164884137,10.8827,144.65,144.58,16.373]
[1642164885339,0.25,144.65,144.58,16.373]
[1642164885539,26.444,144.69,144.59,2.765]
[1642164885739,26.444,144.69,144.61,10.3709]
[1642164885940,26.444,144.69,144.61,16.3709]
[1642164885941,26.694,144.69,144.61,16.3709]
[1642164886245,3.015,144.69,144.61,16.3709]
[1642164886443,10.3701,144.68,144.61,16.3709]
[1642164886969,10.6201,144.68,144.61,16.3709]
[1642164887474,10.8801,144.68,144.61,16.3709]
[1642164889870,10.8801,144.68,144.61,10.3709]
[1642164890072,10.8801,144.68,144.61,16.3709]
[1642164890272,10.8801,144.68,144.61,10.3709]
[1642164890470,10.8801,144.68,144.59,2.765]
[1642164890672,10.8801,144.68,144.59,12.9473419]
[1642164890873,10.8801,144.68,144.59,6.9473419]
[1642164891573,10.8801,144.68,144.59,6.6973419]
[1642164891776,10.3737,144.63,144.58,33.0231419]
[1642164891973,10.6337,144.63,144.58,3.9323419]
[1642164892875,10.6337,144.63,144.58,3.95528189]
[1642164893275,10.6337,144.63,144.58,4.20528189]
[1642164893478,0.26,144.63,144.58,4.20528189]
[1642164893874,15.16306876,144.64,144.58,10.20528189]
[1642164894074,15.16306876,144.64,144.58,4.20528189]
[1642164894483,15.16306876,144.64,144.58,20.57858189]
[1642164894484,0.26,144.64,144.58,20.57858189]
[1642164894681,27.4326,144.7,144.58,20.57858189]
[1642164894881,24.6666,144.7,144.59,2.765]
[1642164895081,24.6666,144.7,144.59,3.015]
[1642164895284,24.6666,144.7,144.59,9.015]
[1642164895481,53.7378957,144.7,144.59,9.015]
[1642164895984,53.9878957,144.7,144.59,9.015]
[1642164896185,29.3212957,144.7,144.6,3.95668804]
[1642164896384,10.371,144.68,144.61,13.1355]
[1642164896588,10.371,144.68,144.61,19.3855]
[1642164896787,10.621,144.68,144.61,19.3855]
[1642164898388,10.621,144.68,144.61,16.6205]
[1642164898790,10.881,144.68,144.61,6.25]
[1642164898989,10.881,144.68,144.61,0.25]
[1642164899390,10.881,144.68,144.6,19.1367]
[1642164899793,10.881,144.68,144.6,8.765]
[1642164900593,10.881,144.68,144.6,2.765]
[1642164900792,10.881,144.68,144.6,3.015]
[1642164901193,10.881,144.68,144.6,0.25]
[1642164901393,80.681,144.68,144.6,0.25]
[1642164901596,80.681,144.68,144.59,3.015]
[1642164901797,80.681,144.68,144.59,2.765]
[1642164902796,2.765,144.67,144.58,28.6034419]
[1642164903000,10.3756,144.63,144.57,3.9323419]
[1642164903396,10.8856,144.63,144.57,3.9323419]
[1642164903800,17.09979821,144.62,144.54,3.9323419]
[1642164903999,10.3798,144.58,144.54,3.9323419]
[1642164904199,13.1468,144.58,144.54,3.9323419]
[1642164904499,13.6568,144.58,144.54,3.9323419]
[1642164905298,10.8898,144.58,144.54,3.9323419]
[1642164905936,10.8898,144.58,144.5,35.64720486]
[1642164906135,13.6568,144.58,144.5,32.88020486]
[1642164906534,13.6568,144.58,144.5,33.13020486]
[1642164906734,13.6568,144.58,144.5,32.88020486]
[1642164906937,13.6568,144.58,144.5,33.13020486]
[1642164907136,13.6568,144.58,144.54,1.97953963]
[1642164908435,13.6568,144.58,144.51,3.95916296]
[1642164908436,10.3827,144.54,144.51,3.95916296]
[1642164908837,10.8927,144.54,144.51,3.95916296]
[1642164909236,10.8927,144.54,144.49,6.6993419]
[1642164909836,2.767,144.53,144.49,6.6993419]
[1642164910036,10.3847,144.51,144.49,6.6993419]
[1642164910437,13.6617,144.51,144.46,3.9323419]
[1642164910641,5.46559678,144.5,144.46,3.9323419]
[1642164911039,5.46559678,144.5,144.43,5.94288165]
[1642164911040,53.0,144.47,144.43,5.94288165]
[1642164911441,53.51,144.47,144.43,5.94288165]
[1642164912140,53.51,144.47,144.39,13.86504949]
[1642164912341,2.769,144.46,144.39,13.86504949]
[1642164912639,3.279,144.46,144.39,19.86504949]
[1642164912840,73.079,144.46,144.39,19.86504949]
[1642164913040,73.079,144.46,144.39,13.86504949]
[1642164913243,10.3886,144.45,144.39,13.86504949]
[1642164913446,27.93872125,144.43,144.38,3.96183363]
[1642164913643,2.769,144.42,144.36,5.94288165]
[1642164914141,3.279,144.42,144.36,5.94288165]
[1642164914646,22.2626,144.42,144.36,5.94288165]
[1642164914842,8.3,144.41,144.34,2.769]
[1642164915042,2.77,144.4,144.32,5.94288165]
[1642164915442,3.28,144.4,144.32,5.94288165]
[1642164916042,73.08,144.4,144.32,5.94288165]
[1642164916250,10.3949,144.39,144.32,5.94288165]
[1642164916444,10.3949,144.39,144.28,10.69749135]
[1642164916445,5.46559678,144.37,144.29,5.94288165]
[1642164916844,5.97559678,144.37,144.29,5.94288165]
[1642164917449,10.3959,144.34,144.29,5.94288165]
[1642164917849,10.9059,144.34,144.29,5.94288165]
[1642164918453,10.3947,144.36,144.29,5.94288165]
[1642164918651,149.26763977,144.64,144.29,5.94288165]
[1642164918652,8.3,144.41,144.29,11.66388165]
[1642164918852,8.3,144.41,144.29,17.91388165]
[1642164919951,0.02,144.37,144.29,17.91388165]
[1642164920151,0.02,144.37,144.3,2.771]
[1642164920354,0.02,144.37,144.3,13.1635]
[1642164920555,0.02,144.37,144.3,19.1635]
[1642164920750,0.02,144.37,144.3,13.1635]
[1642164920954,0.02,144.37,144.3,13.4135]
[1642164921153,0.02,144.37,144.3,21.3015]
[1642164921351,0.02,144.37,144.3,27.3015]
[1642164921751,0.02,144.37,144.3,27.5615]
[1642164922150,0.02,144.37,144.32,5.94288165]
[1642164922350,0.02,144.37,144.35,10.3891]
[1642164922552,0.02,144.37,144.35,16.6391]
[1642164922751,0.02,144.37,144.36,54.06439993]
[1642164924451,41.29016385,144.42,144.37,33.0]
[1642164925256,41.04016385,144.42,144.37,33.0]
[1642164925452,10.3891,144.43,144.37,33.0]
[1642164925852,2.77,144.44,144.37,38.62]
[1642164926053,1.70077588,144.48,144.37,38.62]
[1642164926054,2.769,144.48,144.37,38.62]
[1642164926255,2.769,144.5,144.38,2.769]
[1642164926453,23.04922972,144.49,144.39,22.54933882]
[1642164926653,23.04922972,144.49,144.4,2.769]
[1642164927256,23.29922972,144.49,144.4,2.769]
[1642164927456,10.3862,144.47,144.4,11.384]
[1642164927657,10.3862,144.47,144.4,8.615]
[1642164927855,10.6462,144.47,144.4,8.865]
[1642164929060,10.6462,144.47,144.4,25.2507]
[1642164929259,10.8962,144.47,144.4,25.2507]
[1642164929759,10.8962,144.47,144.4,8.615]
[1642164929961,10.8962,144.47,144.38,2.769]
[1642164930160,10.8962,144.47,144.37,41.71188165]
[1642164930362,10.8962,144.47,144.37,41.96188165]
[1642164930861,10.8962,144.47,144.37,41.71188165]
[1642164931061,80.6962,144.47,144.37,41.71188165]